bitfinex/quotes_ETHUSD_20240711
["timestamp","ask_amount","ask_price","bid_price","bid_amount"]
[1720705802868,0.65154433,3181.7,3181.4,1.26]
[1720705803051,0.65154433,3181.8,3181.4,1.26]
[1720705803238,0.97731649,3181.9,3181.5,3.14317]
[1720705803239,0.65154433,3181.9,3181.5,3.14317]
[1720705803471,0.76414237,3181.9,3181.5,3.897823]
[1720705803642,0.65154433,3181.9,3181.5,3.897823]
[1720705804184,0.65154433,3181.9,3181.5,0.754653]
[1720705804355,0.65154433,3181.9,3181.4,1.26]
[1720705804548,0.65154433,3181.8,3181.4,1.26]
[1720705804742,0.65154433,3181.9,3181.6,3.14307]
[1720705804986,0.65154433,3181.9,3181.8,3.14287]
[1720705805187,0.65154433,3182.2,3181.7,0.55]
[1720705805390,0.65154433,3182.2,3181.7,3.14289]
[1720705805606,0.97731649,3182.4,3181.4,1.26]
[1720705805607,0.76401722,3182.1,3181.4,1.26]
[1720705805752,0.65154433,3182.0,3181.8,3.14286]
[1720705805959,0.65154433,3182.2,3181.9,3.14277]
[1720705806159,0.65154433,3182.3,3182.0,3.14267]
[1720705806358,0.76401603,3182.3,3181.6,3.14304]
[1720705806661,0.65154433,3182.2,3181.7,3.14293]
[1720705806969,0.76401603,3182.2,3181.7,3.14293]
[1720705807169,0.1124717,3182.1,3181.7,3.14293]
[1720705807352,0.65154433,3182.2,3181.7,3.14293]
[1720705807559,0.76403606,3182.1,3181.7,3.14293]
[1720705807781,0.65154433,3182.1,3181.6,0.4843371]
[1720705807979,0.65154433,3182.1,3181.4,4.40326]
[1720705807980,0.76403693,3182.0,3181.4,1.26]
[1720705808181,0.65154433,3181.8,3181.5,4.0]
[1720705808780,0.97731649,3182.0,3181.5,4.0]
[1720705808781,0.76409234,3181.7,3181.5,4.0]
[1720705808983,0.65154433,3181.7,3181.4,1.26]
[1720705809403,0.65154433,3181.8,3181.4,1.26]
[1720705809613,0.65154433,3181.8,3181.5,0.440328]
[1720705809832,0.11251084,3181.7,3181.4,1.26]
[1720705809992,0.65154433,3181.7,3181.4,4.40321]
[1720705810197,0.65154433,3181.9,3181.4,4.40321]
[1720705810515,0.11248481,3181.8,3181.4,7.54642]
[1720705810820,0.65154433,3181.9,3181.4,4.40319]
[1720705811115,0.76403431,3181.8,3181.4,4.40319]
[1720705811320,0.65154433,3181.8,3181.4,5.48661874]
[1720705811617,0.65154433,3181.9,3181.5,3.14316]
[1720705811828,0.65154433,3181.8,3181.4,2.34342874]
[1720705812125,0.76403584,3181.7,3181.4,4.40325]
[1720705812327,0.65126018,3181.7,3181.4,1.26]
[1720705813030,0.65126018,3181.8,3181.4,1.26]
[1720705813200,0.65126018,3181.7,3181.4,1.26]
[1720705813519,0.76707855,3181.6,3181.4,1.26]
[1720705813708,0.65126018,3181.6,3181.4,1.26]
[1720705814084,0.65126018,3181.7,3181.4,1.26]
[1720705814522,0.76709526,3181.6,3181.4,1.26]
[1720705814829,0.65126018,3181.6,3181.4,1.26]
[1720705814985,0.65126018,3181.7,3181.4,1.26]
[1720705815395,0.76713299,3181.7,3181.6,3.14307]
[1720705815658,0.65126018,3182.0,3181.7,3.14292]
[1720705816144,0.65126018,3181.9,3181.7,6.28584]
[1720705816316,0.65126018,3182.0,3181.8,3.14281]
[1720705816709,0.76706496,3181.9,3181.8,3.14281]
[1720705816940,0.65126018,3182.0,3181.8,3.14281]
[1720705818058,0.76706334,3182.0,3181.9,6.28554]
[1720705818219,0.65126018,3182.3,3181.9,0.61284598]
[1720705818537,0.97689027,3182.7,3182.5,3.14218]
[1720705818951,1.37394381,3182.6,3182.0,3.28767736]
[1720705819247,0.97798011,3182.1,3182.0,3.28767736]
[1720705819455,0.1158983,3182.1,3182.0,6.43034736]
[1720705819607,0.65215097,3182.1,3182.0,3.28767736]
[1720705819809,1.09387841,3182.1,3182.0,3.28767736]
[1720705820119,0.57860344,3182.1,3182.0,3.28767736]
[1720705820300,1.88257692,3182.1,3182.0,3.28767736]
[1720705821043,2.20883619,3182.1,3182.0,3.28767736]
[1720705821203,3.29712837,3182.1,3182.0,3.28767736]
[1720705821601,3.29789331,3182.1,3182.0,3.28767736]
[1720705821904,0.46270514,3182.1,3182.0,3.28767736]
[1720705822108,0.97868471,3182.1,3182.0,10.27890066]
[1720705822328,0.76850681,3182.1,3182.0,10.7660561]
[1720705822870,0.76850681,3182.1,3182.0,7.47837874]
[1720705823073,0.65254667,3182.3,3182.2,3.14248]
[1720705823253,0.65254667,3182.5,3182.4,3.14228]
[1720705823465,0.97868471,3182.6,3182.4,3.14228]
[1720705823634,0.97868471,3182.5,3182.4,3.14228]
[1720705823834,0.1158407,3182.5,3182.4,3.770745]
[1720705824064,0.97868471,3182.6,3182.5,3.14218]
[1720705824332,0.11586693,3182.6,3182.5,6.28436]
[1720705824532,0.768532,3182.6,3182.5,6.83436]
[1720705825132,0.9787157,3182.8,3182.7,3.14195]
[1720705825369,0.9787157,3182.8,3182.5,3.69211]
[1720705825574,1.09433065,3182.7,3182.6,3.14208]
[1720705825774,1.09433065,3182.7,3182.3,3.1423]
[1720705825983,1.09433065,3182.7,3182.1,3.14254]
[1720705825984,0.97855098,3182.5,3182.1,7.14248]
[1720705826290,0.65234133,3182.3,3182.2,3.14244]
[1720705826439,0.11578054,3182.3,3182.2,6.28492]
[1720705826638,0.76816882,3182.4,3182.3,3.14238]
[1720705826864,0.76816404,3182.4,3182.3,3.14238]
[1720705827751,0.76816404,3182.4,3182.3,6.28476]
[1720705827970,0.76816404,3182.4,3182.3,4.08242119]
[1720705828204,0.11582271,3182.4,3182.3,3.14238]
[1720705828359,0.76806259,3182.4,3182.3,3.14238]
[1720705828560,0.11581613,3182.4,3182.3,3.14238]
[1720705829303,0.11581613,3182.4,3181.7,3.28767736]
[1720705829304,1.09436711,3182.5,3181.7,6.43057736]
[1720705829465,0.65255168,3182.0,3181.9,4.0]
[1720705829659,1.09436711,3182.0,3181.7,3.28767736]
[1720705829867,1.09436711,3182.0,3181.6,0.4]
[1720705829868,0.65250472,3181.8,3181.6,0.4]
[1720705830161,0.97855098,3181.7,3181.6,0.4]
[1720705830384,1.85896668,3181.7,3181.6,0.4]
[1720705830593,6.9387671,3181.7,3181.6,0.4]
[1720705830769,3.14348,3181.2,3180.8,3.28767736]
[1720705831090,1.63077081,3180.9,3180.2,3.28767736]
[1720705831291,0.65220509,3180.5,3180.2,3.28767736]
[1720705831502,0.46279829,3180.8,3180.3,3.14433]
[1720705831707,0.65175499,3180.7,3180.3,3.14433]
[1720705831912,0.76792118,3180.6,3180.4,0.0612697]
[1720705832204,0.97763249,3180.8,3180.4,3.2055197]
[1720705832205,0.65175499,3180.7,3180.4,3.2055197]
[1720705832511,0.97763249,3180.8,3180.4,3.2055197]
[1720705832512,0.65175499,3180.8,3180.4,3.2055197]
[1720705832720,0.11608433,3180.7,3180.4,3.14425]
[1720705832876,0.65175499,3180.8,3180.4,3.14425]
[1720705833074,0.97763249,3181.0,3180.7,3.14388]
[1720705833075,0.65175499,3180.9,3180.7,3.14388]
[1720705833305,0.65175499,3181.0,3180.8,3.14386]
[1720705833518,0.65175499,3181.1,3180.8,3.14386]
[1720705833679,0.65175499,3181.0,3180.9,0.05816503]
[1720705834004,0.65175499,3181.0,3180.6,3.14403]
[1720705834005,0.11600607,3181.0,3180.6,3.14403]
[1720705834208,0.65125842,3180.9,3180.6,3.14403]
[1720705834373,0.65125842,3181.0,3180.6,3.14403]
[1720705834905,0.65125842,3181.1,3180.6,3.83565907]
[1720705835117,0.65125842,3181.2,3181.0,3.14357]
[1720705835283,0.65125842,3181.4,3181.1,3.14356]
[1720705835687,0.11339987,3181.3,3181.1,3.14356]
[1720705835989,0.65125842,3181.5,3181.1,3.14356]
[1720705836189,0.65125842,3181.4,3180.6,3.14404]
[1720705836491,0.65125842,3181.1,3180.5,3.14409]
[1720705836808,0.76468029,3181.1,3180.3,6.43195736]
[1720705837020,0.65125842,3180.9,3180.3,3.28767736]
[1720705837522,0.76468029,3180.8,3180.3,3.28767736]
[1720705837821,0.12191472,3180.7,3180.1,3.14453]
[1720705838051,0.65125842,3180.8,3180.2,4.0]
[1720705838208,0.65125842,3180.8,3180.0,6.43224736]
[1720705838209,3.95803751,3180.8,3180.0,3.28767736]
[1720705838404,0.65125842,3180.6,3180.0,3.28767736]
[1720705838603,0.65125842,3180.5,3180.0,3.28767736]
[1720705839045,0.773199,3180.6,3180.0,6.43230736]
[1720705839253,0.65125842,3180.6,3180.0,6.43230736]
[1720705839622,0.65125842,3180.7,3180.0,6.43230736]
[1720705839924,0.65125842,3180.7,3180.2,3.14436]
[1720705840122,0.65125842,3180.7,3180.2,6.28872]
[1720705840332,0.65125842,3180.8,3180.3,3.14434]
[1720705840703,0.65125842,3180.9,3180.3,3.14434]
[1720705840902,0.77305708,3180.8,3180.4,0.0527969]
[1720705841119,0.17506896,3180.8,3180.3,3.14434]
[1720705841336,0.65093707,3180.8,3180.4,0.0527969]
[1720705841541,0.65093707,3180.9,3180.4,0.0527969]
[1720705841713,0.1217803,3180.8,3180.4,0.0527969]
[1720705841918,0.65093707,3180.9,3180.4,0.0527969]
[1720705842243,0.65093707,3180.7,3180.0,3.28767736]
[1720705842408,0.81367134,3180.7,3180.5,0.0527969]
[1720705842605,0.77273691,3180.6,3180.0,6.43231736]
[1720705842951,0.65093707,3180.7,3180.1,3.14453]
[1720705843156,0.65093707,3180.7,3180.2,0.0527969]
[1720705843442,0.65093707,3181.0,3180.5,3.14414]
[1720705843747,0.1217,3180.9,3180.6,0.06287469]
[1720705844058,0.65093707,3181.2,3180.9,3.14374]
[1720705844207,0.65093707,3181.5,3181.0,3.14361]
[1720705844408,0.65093707,3181.6,3181.0,3.14361]
[1720705844614,0.12161876,3181.5,3181.1,0.05277672]
[1720705844845,0.77255583,3181.5,3181.1,0.05277672]
[1720705845033,0.65093707,3181.5,3181.1,3.19632672]
[1720705845217,0.65093707,3181.5,3181.1,0.05277672]
[1720705845553,0.65093707,3181.4,3181.1,0.05277672]
[1720705845860,0.9764056,3181.6,3180.8,3.1438]
[1720705845861,0.65093707,3181.5,3181.0,3.14366]
[1720705846009,0.12161714,3181.4,3181.2,0.052696]
[1720705846212,0.65093707,3181.5,3181.1,0.05262035]
[1720705846444,0.65093707,3181.5,3181.0,3.14366]
[1720705846621,0.65093707,3181.6,3181.2,3.19431445]
[1720705846958,0.65093707,3181.7,3181.3,3.19418048]
[1720705847162,0.65093707,3181.7,3181.3,0.05082048]
[1720705847452,0.65093707,3181.7,3181.4,3.14324]
[1720705847648,0.65093707,3182.0,3181.6,6.28606]
[1720705847813,0.65093707,3182.1,3181.6,6.28606]
[1720705848011,0.65093707,3182.1,3181.7,3.14296]
[1720705848214,0.65093707,3182.1,3181.8,3.1428]
[1720705848520,0.9764056,3182.2,3181.9,3.19183484]
[1720705848521,0.65093707,3182.2,3181.9,3.19183484]
[1720705848720,0.12146612,3182.1,3181.9,3.19183484]
[1720705848934,0.65093707,3182.2,3181.9,3.19183484]
[1720705849311,0.65093707,3182.2,3181.9,0.04906484]
[1720705849512,0.12146126,3182.1,3181.7,3.1429]
[1720705849708,0.65093707,3182.2,3181.8,0.04905667]
[1720705849910,0.77240879,3182.1,3181.2,2.4773]
[1720705850142,0.65093707,3181.9,3181.4,3.14326]
[1720705850347,0.77245895,3181.8,3181.3,4.0]
[1720705850552,0.77245895,3181.8,3180.9,18.55137736]
[1720705850553,0.65093707,3181.7,3181.4,0.04905667]
[1720705850775,0.28425615,3181.6,3181.0,3.14364]
[1720705850934,0.72253398,3181.5,3181.1,0.04905667]
[1720705851131,0.60093707,3181.5,3181.1,0.04905667]
[1720705851363,0.9764056,3181.8,3181.3,3.14327]
[1720705851530,0.11940217,3181.7,3180.9,15.40767736]
[1720705851863,0.1194253,3181.6,3181.0,3.19263667]
[1720705852065,1.09584151,3181.5,3181.0,0.04905667]
[1720705852368,0.9764056,3181.2,3181.0,0.04905667]
[1720705852535,1.09584151,3181.1,3181.0,0.04905667]
[1720705852719,3.72601402,3181.1,3180.2,3.28767736]
[1720705852925,0.9756615,3180.9,3180.3,0.04718584]
[1720705853128,0.11943591,3180.8,3180.3,0.04718584]
[1720705853428,0.9756615,3181.0,3180.2,3.28767736]
[1720705853654,0.9756615,3180.8,3180.4,0.04735155]
[1720705853869,0.9756615,3180.8,3180.2,3.28767736]
[1720705854072,0.11717632,3180.7,3180.5,0.04735155]
[1720705854224,0.9756615,3180.9,3180.2,3.28767736]
[1720705854428,0.11717108,3180.8,3180.6,0.04741685]
[1720705854626,0.11717108,3180.7,3180.2,3.28767736]
[1720705854862,0.9756615,3180.9,3180.7,0.04741685]
[1720705855064,0.34482878,3180.8,3180.2,3.28767736]
[1720705855267,0.11717443,3180.7,3180.2,3.28767736]
[1720705855471,0.9756615,3181.0,3180.2,6.43211736]
[1720705855677,4.76932473,3181.3,3180.2,6.43211736]
[1720705855678,0.11711105,3180.9,3180.3,3.20721172]
[1720705855982,0.9756615,3181.1,3180.3,3.20721172]
[1720705855983,0.9756615,3181.1,3180.5,3.14408]
[1720705856143,0.9756615,3181.1,3180.2,3.28767736]
[1720705856144,0.11711152,3181.0,3180.2,3.28767736]
[1720705856333,0.11713927,3180.9,3180.2,3.28767736]
[1720705856527,0.9756615,3180.9,3180.2,3.28767736]
[1720705856733,0.11713927,3180.8,3180.2,6.43212736]
[1720705856952,0.7756615,3181.0,3180.2,3.28767736]
[1720705857163,0.97508948,3180.8,3180.2,3.28767736]
[1720705857466,0.117143,3180.7,3180.2,3.28767736]
[1720705857651,1.20550927,3180.9,3180.2,3.28767736]
[1720705857652,0.23041979,3180.9,3180.2,3.28767736]
[1720705857999,0.97499557,3181.2,3180.4,3.14424]
[1720705858309,0.10855631,3181.1,3180.4,6.28837]
[1720705858490,0.10855631,3181.0,3180.4,6.28837]
[1720705858670,0.97499557,3181.2,3180.4,3.14418]
[1720705859408,1.08869225,3181.1,3180.4,3.14418]
[1720705859554,0.10853617,3181.0,3180.5,3.14415]
[1720705859751,0.97499557,3181.2,3180.6,3.14402]
[1720705859988,0.10860983,3181.1,3180.6,3.14402]
[1720705860189,0.97499557,3181.3,3180.6,3.14402]
[1720705860395,0.97499557,3181.3,3180.7,0.04761772]
[1720705860396,1.19720255,3181.2,3180.7,0.04761772]
[1720705860619,0.10859508,3181.1,3180.7,0.04761772]
[1720705860776,0.97499557,3181.1,3180.2,9.57643736]
[1720705860977,0.65037589,3181.0,3180.3,0.04761772]
[1720705861176,1.84769293,3180.9,3180.3,0.04761772]
[1720705861416,0.75897097,3180.8,3180.3,0.04761772]
[1720705861622,0.65037589,3180.9,3180.3,0.04761772]
[1720705861834,0.75898062,3180.8,3180.2,3.28767736]
[1720705862119,0.65037589,3181.0,3180.4,0.04761772]
[1720705862324,0.65037589,3181.0,3180.5,3.14414]
[1720705862622,0.65037589,3181.3,3181.0,3.14364]
[1720705862780,1.29999409,3181.6,3180.8,3.14377]
[1720705862781,0.65037589,3181.6,3180.8,3.14377]
[1720705862981,0.65037589,3181.4,3180.9,3.14374]
[1720705863181,0.65037589,3181.5,3181.0,0.04759763]
[1720705863410,1.73896637,3181.4,3180.6,3.144]
[1720705863619,1.84742847,3181.3,3181.1,0.04759763]
[1720705863798,0.1084621,3181.2,3180.8,3.14386]
[1720705863987,0.65037589,3181.4,3180.9,0.04759512]
[1720705864184,0.10847756,3181.3,3180.9,0.04759512]
[1720705864385,0.75887432,3181.3,3180.9,0.04759512]
[1720705864696,0.65037589,3181.3,3180.6,3.14398]
[1720705864889,0.65037589,3181.3,3180.6,4.16636469]
[1720705865095,0.75686437,3181.2,3180.5,3.28767736]
[1720705865295,0.65037589,3181.2,3180.7,0.04594065]
[1720705865479,0.65037589,3181.0,3180.5,3.28767736]
[1720705865916,0.65037589,3180.9,3180.5,3.28767736]
[1720705866255,3.14396,3180.7,3180.6,0.04594316]
[1720705866381,7.17076549,3180.7,3180.6,0.04594316]
[1720705866733,7.17076549,3180.7,3179.6,4.4]
[1720705866734,3.14425,3180.4,3179.6,4.4]
[1720705867030,0.64983664,3180.2,3179.7,0.04598585]
[1720705867192,3.14476,3179.9,3179.7,0.04598585]
[1720705867397,0.10675065,3179.8,3179.1,3.28767736]
[1720705867595,3.14476,3179.9,3179.2,0.04598585]
[1720705868320,3.14532,3179.4,3179.2,0.04598585]
[1720705868635,3.1455,3179.2,3178.4,3.28767736]
[1720705868789,0.11014428,3179.1,3178.4,3.28767736]
[1720705869120,0.64930486,3179.2,3178.5,0.04577621]
[1720705869340,0.64930486,3179.0,3178.5,0.04577621]
[1720705869834,3.79478486,3179.2,3178.5,0.04577621]
[1720705870332,0.75919847,3179.1,3178.5,0.04577621]
[1720705870538,3.14555,3179.1,3178.5,0.04577621]
[1720705870740,0.314555,3179.0,3178.5,0.04577621]
[1720705870970,0.314555,3179.0,3177.4,3.28767736]
[1720705870971,8.84806,3178.6,3177.4,3.28767736]
[1720705871238,8.84806,3178.6,3177.5,0.04016033]
[1720705871239,3.79534041,3178.0,3177.5,0.04016033]
[1720705871441,3.14683,3177.8,3177.5,0.04016033]
[1720705871597,3.14683,3177.8,3176.3,2.3747]
[1720705871598,0.314683,3177.7,3176.8,3.28767736]
[1720705871806,3.14663,3178.0,3176.9,0.03613033]
[1720705872166,3.79515041,3178.2,3176.9,0.03613033]
[1720705872328,3.14677,3177.9,3176.9,0.03613033]
[1720705872852,3.14695,3177.7,3176.9,0.03613033]
[1720705873227,3.14677,3177.9,3176.9,0.03613033]
[1720705873425,0.314677,3177.8,3176.9,0.03613033]
[1720705873648,3.461507,3177.8,3176.9,0.03613033]
[1720705873815,3.14693,3177.7,3176.9,0.03613033]
[1720705874525,0.314677,3177.8,3176.9,0.03613033]
[1720705875034,3.461577,3177.8,3176.9,0.03613033]
[1720705875211,0.6608317,3177.7,3176.9,0.03613033]
[1720705875414,3.14668,3178.0,3176.9,0.03613033]
[1720705876226,3.14668,3178.0,3176.9,3.18383033]
[1720705876526,3.14654,3178.1,3176.9,3.18383033]
[1720705876527,3.14646,3178.2,3176.9,3.18383033]
[1720705876742,3.1467,3178.0,3176.9,3.18383033]
[1720705876913,3.04701041,3178.6,3176.9,0.03613033]
[1720705877115,2.3983,3178.6,3177.3,3.14728]
[1720705877364,0.314555,3179.0,3177.4,0.03644483]
[1720705877514,3.14582,3178.9,3177.8,3.14682]
[1720705877715,0.314555,3179.0,3177.8,3.14682]
[1720705877947,0.314555,3179.0,3177.9,0.03644231]
[1720705878116,3.4917985,3178.9,3177.9,0.03644231]
[1720705878436,3.4917985,3178.9,3177.8,3.14682]
[1720705878639,0.3460185,3178.9,3178.0,0.03636429]
[1720705878881,0.314555,3179.0,3177.7,3.28767736]
[1720705879169,2.4778,3179.2,3177.7,6.43456736]
[1720705879374,2.4778,3179.2,3177.8,0.03628377]
[1720705879545,2.4778,3179.2,3178.1,3.14652]
[1720705879745,2.2707,3179.7,3178.1,0.06292236]
[1720705879946,2.2707,3179.7,3178.0,3.28767736]
[1720705879947,3.14493,3179.8,3178.7,3.14592]
[1720705880129,0.62896,3179.8,3178.9,3.14573]
[1720705880468,0.62896,3179.8,3178.8,0.06290961]
[1720705880469,3.14454,3180.2,3179.0,0.03628126]
[1720705880669,3.14434,3180.4,3179.2,3.14543]
[1720705880886,3.14413,3180.6,3179.2,3.14543]
[1720705881046,3.14413,3180.6,3179.4,3.14523]
[1720705881231,6.28764,3180.9,3179.7,3.14494]
[1720705881438,0.628764,3180.8,3179.8,3.14478]
[1720705881639,3.14372,3181.0,3179.8,3.14478]
[1720705881881,3.14372,3181.0,3179.9,3.18069179]
[1720705882179,3.14353,3181.2,3180.0,3.14464]
[1720705882481,3.14287,3181.8,3179.9,0.09883845]
[1720705882482,6.14581193,3181.9,3180.1,0.06288625]
[1720705882629,4.01311119,3181.8,3180.7,3.14394]
[1720705882834,3.14313,3181.6,3180.4,3.14425]
[1720705883335,3.14313,3181.6,3181.1,0.2]
[1720705883845,3.14328,3181.4,3181.1,0.2]
[1720705884042,3.14339,3181.3,3181.1,0.2]
[1720705884246,3.772127,3181.2,3181.1,0.2]
[1720705884458,3.772127,3181.2,3181.1,0.17158792]
[1720705884773,3.772127,3181.2,3179.3,5.70297736]
[1720705884774,2.4552,3181.1,3179.3,5.70297736]
[1720705884973,3.14378,3180.9,3179.5,4.41514]
[1720705885136,0.314378,3180.8,3179.5,4.41514]
[1720705885339,0.314378,3180.8,3179.9,3.14473]
[1720705885557,2.4552,3181.6,3180.3,3.14433]
[1720705885765,3.14317,3181.5,3180.3,3.14433]
[1720705886266,3.14305,3181.7,3180.3,3.14433]
[1720705886267,6.2861,3181.7,3180.5,3.14414]
[1720705886571,0.87018119,3181.8,3180.6,0.09856675]
[1720705886777,8.74025,3182.2,3181.1,3.14354]
[1720705886938,3.14258,3182.1,3181.1,3.14354]
[1720705887280,3.14258,3182.1,3181.0,3.28767736]
[1720705887281,3.14258,3182.1,3181.2,0.03569039]
[1720705887463,3.14277,3181.9,3181.2,0.03569039]
[1720705887663,3.14314,3181.6,3181.0,3.28767736]
[1720705887835,0.314277,3181.8,3181.3,0.03551454]
[1720705888039,0.314277,3181.8,3181.0,6.43133736]
[1720705888365,2.4552,3182.2,3181.1,3.17901678]
[1720705888366,3.14248,3182.2,3181.1,3.17901678]
[1720705888567,5.05394653,3182.8,3181.2,0.06286236]
[1720705888568,3.14214,3182.6,3181.2,0.06286236]
[1720705888733,3.14214,3182.6,3181.4,3.14325]
[1720705889260,3.14218,3182.5,3181.5,0.03545427]
[1720705889462,3.14232,3182.4,3181.5,0.03545427]
[1720705889636,0.62845,3182.3,3181.5,0.03545427]
[1720705889837,0.62845,3182.3,3181.3,3.14329]
[1720705890062,0.62845,3182.3,3181.6,0.03545427]
[1720705890258,0.62845,3182.3,3181.4,3.14317]
[1720705890533,3.14205,3182.7,3181.5,3.14316]
[1720705890737,3.14208,3182.6,3181.6,3.17850427]
[1720705891039,5.47417,3182.8,3181.6,3.17850427]
[1720705891351,3.142,3182.7,3181.6,3.17850427]
[1720705891560,3.14208,3182.6,3181.6,0.03545427]
[1720705891748,0.628408,3182.5,3181.6,3.17851427]
[1720705891960,5.69796,3182.8,3181.6,0.03545427]
[1720705892255,3.14244,3182.3,3181.2,3.14346]
[1720705892881,3.14248,3182.2,3181.3,0.03483874]
[1720705893243,3.14248,3182.2,3181.0,6.43130736]
[1720705893447,3.771162,3182.1,3181.0,3.28767736]
[1720705893751,0.628492,3182.1,3181.1,0.03483874]
[1720705893951,3.14268,3182.0,3181.1,0.03483874]
[1720705894655,3.14302,3181.7,3181.1,0.03483874]
[1720705894854,0.314302,3181.6,3181.1,0.03483874]
[1720705895795,3.457392,3181.6,3181.1,0.03483874]
[1720705896124,6.28692,3181.2,3181.1,0.03483874]
[1720705896281,3.14346,3181.2,3181.1,0.03483874]
[1720705896590,3.1436,3181.1,3180.2,3.28767736]
[1720705896800,3.14337,3181.3,3180.2,3.28767736]
[1720705896801,0.31436,3181.0,3180.3,0.03368431]
[1720705896965,3.14337,3181.3,3180.3,0.03368431]
[1720705897367,3.14317,3181.5,3180.3,3.17803431]
[1720705897563,0.314302,3181.6,3180.5,3.14408]
[1720705897772,0.314302,3181.6,3180.6,3.17776482]
[1720705898152,3.457382,3181.6,3180.6,3.17776482]
[1720705898356,0.6600402,3181.5,3180.6,3.17776482]
[1720705898559,0.628492,3182.1,3180.6,3.17776482]
[1720705898560,0.628492,3182.1,3181.1,3.14347]
[1720705898806,0.628492,3182.1,3181.2,0.03376719]
[1720705899097,3.771152,3182.1,3181.2,0.03376719]
[1720705899260,3.14275,3182.0,3181.2,0.03376719]
[1720705899597,3.14275,3182.0,3181.3,0.03368933]
[1720705899801,0.6913902,3181.9,3181.0,3.28767736]
[1720705900098,3.14303,3181.7,3181.1,0.03368933]
[1720705900261,3.14307,3181.6,3181.1,0.03368933]
[1720705900971,3.1434,3181.3,3180.6,3.28767736]
[1720705901181,3.14334,3181.4,3180.7,0.03364413]
[1720705901382,3.457704,3181.3,3180.7,0.03364413]
[1720705902397,0.314334,3181.3,3180.7,0.03364413]
[1720705902594,3.0474902,3181.9,3180.7,0.03364413]
[1720705902893,3.14332,3181.4,3180.7,0.03364413]
[1720705904562,6.28622,3181.6,3180.7,0.03364413]
[1720705904900,3.14307,3181.6,3180.7,0.03364413]
[1720705905509,3.14303,3181.7,3180.7,3.17753413]
[1720705905662,3.14292,3181.8,3180.7,3.17753413]
[1720705905663,0.628595,3181.6,3180.7,3.17753413]
[1720705905863,3.14292,3181.8,3180.7,3.17753413]
[1720705906203,3.14301,3181.7,3180.7,3.17753413]
[1720705906502,3.14307,3181.6,3180.7,0.03364413]
[1720705906705,3.14307,3181.6,3180.7,3.17759413]
[1720705907501,3.14258,3182.1,3181.1,3.14348]
[1720705907698,3.14258,3182.1,3181.0,3.14361]
[1720705907884,3.14258,3182.1,3181.2,3.17733513]
[1720705908077,3.14258,3182.1,3181.1,3.14356]
[1720705908280,0.55089947,3182.3,3181.3,0.03387513]
[1720705908281,3.14295,3181.8,3181.3,0.03387513]
[1720705908596,3.14295,3181.8,3180.9,3.28767736]
[1720705908597,0.314295,3181.7,3180.9,3.28767736]
[1720705908800,0.314295,3181.7,3181.0,0.03384249]
[1720705908991,3.14273,3182.0,3181.0,0.03384249]
[1720705909360,1.08850042,3181.9,3181.0,0.03384249]
[1720705909573,1.08850042,3181.8,3181.0,0.03384249]
[1720705909902,0.55089947,3182.3,3181.0,0.03384249]
[1720705909903,3.69328947,3182.3,3181.2,3.14338]
[1720705910079,1.08839783,3182.2,3181.2,3.20624207]
[1720705910279,0.47816873,3182.1,3181.3,0.03383496]
[1720705910965,1.08839636,3182.0,3181.3,0.03383496]
[1720705911161,0.47816873,3182.1,3181.3,0.03383496]
[1720705911399,1.08840213,3182.0,3181.3,0.03383496]
[1720705911559,3.69330947,3182.3,3181.3,0.03383496]
[1720705911765,1.08835714,3182.2,3181.3,0.03383496]
[1720705911965,1.08835714,3182.1,3181.3,0.03383496]
[1720705912193,1.08835714,3182.2,3181.3,0.03383496]
[1720705912506,1.08834942,3182.1,3181.0,0.55]
[1720705912676,0.16392566,3182.2,3181.5,3.14311]
[1720705913005,1.08834641,3182.1,3181.6,0.03377972]
[1720705913247,3.14199,3182.7,3181.6,0.03377972]
[1720705913445,3.14219,3182.5,3181.6,0.03377972]
[1720705913746,1.08828996,3182.4,3181.6,0.03377972]
[1720705914106,1.08828804,3182.3,3181.9,3.14275]
[1720705914306,2.17656836,3182.3,3181.9,3.14275]
[1720705914508,2.17656836,3182.3,3182.0,3.17624388]
[1720705915450,2.17656836,3182.3,3182.1,3.14255]
[1720705916035,2.17656836,3182.3,3182.2,0.03358388]
[1720705916606,2.17656836,3182.3,3181.9,6.28542]
[1720705916813,2.17656836,3182.3,3182.0,5.65883073]
[1720705917325,2.17656836,3182.3,3182.1,3.14256]
[1720705917530,2.17656836,3182.3,3182.2,3.14248]
[1720705917732,2.17656836,3182.3,3182.2,0.0333881]
[1720705918287,0.21765684,3182.3,3182.2,0.0333881]
[1720705918579,3.14189,3182.8,3182.0,2.4828]
[1720705918751,1.08817073,3182.7,3182.2,0.0333881]
[1720705918953,3.14189,3182.8,3182.2,0.0333881]
[1720705919141,3.14224,3182.5,3182.2,0.0333881]
[1720705919352,3.14194,3182.8,3182.2,0.0333881]
[1720705919574,1.40241357,3182.7,3182.2,0.0333881]
[1720705919784,0.314194,3182.7,3182.2,0.0333881]
[1720705920679,1.08823369,3182.6,3182.2,0.0333881]
[1720705920980,3.14229,3182.4,3182.2,0.0333881]
[1720705921340,3.14238,3182.3,3182.2,0.0333881]
[1720705921580,0.628467,3182.3,3182.2,0.0333881]
[1720705921786,3.14238,3182.3,3182.2,0.0333881]
[1720705922171,7.37312291,3182.3,3182.2,0.0283632]
[1720705922371,3.14288,3181.8,3181.5,0.2]
[1720705922574,3.14288,3181.8,3181.6,0.03322061]
[1720705922884,0.6497458,3182.2,3181.6,0.03322061]
[1720705923086,0.64978282,3182.3,3181.6,0.03322061]
[1720705923260,1.46757837,3182.2,3181.6,0.03322061]
[1720705923588,1.0289931,3182.2,3181.6,0.03322061]
[1720705923884,4.11699423,3182.4,3181.6,0.03322061]
[1720705923885,0.64978282,3182.4,3181.6,0.03322061]
[1720705924051,5.00165393,3182.3,3181.6,0.03322061]
[1720705924251,1.08835795,3182.2,3181.6,0.03322061]
[1720705924453,0.12129571,3182.1,3181.7,2.4857]
[1720705924662,0.64978282,3182.3,3181.7,5.62866]
[1720705924861,0.64978282,3182.4,3181.8,0.0333712]
[1720705925073,0.64978282,3182.5,3181.8,3.1761712]
[1720705925449,0.64978282,3182.3,3181.9,3.14276]
[1720705925651,0.64978282,3182.6,3182.1,3.14257]
[1720705925871,0.64978282,3182.6,3181.7,3.07188806]
[1720705925872,0.64978282,3182.6,3182.2,3.14239]
[1720705926084,0.64978282,3182.6,3182.0,3.17600117]
[1720705926085,0.64978282,3182.6,3182.0,3.14264]